bitfinex/quotes_SOLUSD_20250415
["timestamp","ask_amount","ask_price","bid_price","bid_amount"]
[1744721255608,10.42,131.73,131.71,28.39671811]
[1744721256027,38.81671811,131.73,131.7,1.626]
[1744721256534,10.42,131.73,131.7,48.67236697]
[1744721256827,10.42,131.73,131.7,56.26516697]
[1744721258705,10.42,131.73,131.71,28.39671811]
[1744721259232,10.42,131.73,131.72,28.39671811]
[1744721259624,10.42,131.73,131.71,47.04636697]
[1744721260510,10.42,131.73,131.71,54.63866697]
[1744721262833,10.42,131.73,131.71,47.04636697]
[1744721263729,38.81671811,131.73,131.7,1.626]
[1744721263915,38.81671811,131.73,131.69,18.64964886]
[1744721264122,10.42,131.73,131.71,28.39671811]
[1744721264330,10.42,131.73,131.72,28.39671811]
[1744721264737,10.42,131.73,131.72,47.04636697]
[1744721264933,10.42,131.73,131.72,54.63816697]
[1744721265648,10.42,131.73,131.72,47.04636697]
[1744721266243,10.42,131.73,131.7,28.39671811]
[1744721266433,18.0114,131.73,131.69,54.39671811]
[1744721266727,28.39671811,131.7,131.66,1.6142]
[1744721266937,28.39671811,131.68,131.64,7.5962]
[1744721267113,38.79671811,131.68,131.64,7.5962]
[1744721267513,28.39671811,131.67,131.63,8.076]
[1744721267715,28.39671811,131.66,131.63,1.5513]
[1744721268015,28.39671811,131.66,131.63,20.20094886]
[1744721268634,10.4,131.68,131.63,20.20094886]
[1744721268635,28.39671811,131.67,131.63,20.20094886]
[1744721268849,35.99181811,131.67,131.63,20.20094886]
[1744721269238,35.99181811,131.67,131.63,27.79784886]
[1744721269540,7.5951,131.67,131.63,56.19456697]
[1744721270022,46.39111811,131.68,131.63,56.19456697]
[1744721270426,10.4,131.68,131.65,28.39671811]
[1744721270739,46.39091811,131.68,131.63,9.1482]
[1744721270919,46.39091811,131.68,131.64,18.64964886]
[1744721271527,28.39671811,131.67,131.63,1.5513]
[1744721271719,28.39671811,131.66,131.63,0.03]
[1744721272113,28.39671811,131.67,131.63,0.03]
[1744721272314,28.39671811,131.66,131.63,0.03]
[1744721273443,35.99161811,131.67,131.63,0.03]
[1744721273739,35.99161811,131.67,131.63,28.42671811]
[1744721275940,28.39671811,131.64,131.63,0.03]
[1744721277943,35.99311811,131.64,131.63,0.03]
[1744721278316,54.98421811,131.64,131.61,0.063]
[1744721278521,28.39671811,131.62,131.61,0.063]
[1744721280143,35.99431811,131.62,131.61,0.063]
[1744721280328,7.5976,131.62,131.61,0.063]
[1744721282045,46.39391811,131.63,131.61,0.063]
[1744721282425,17.9972,131.63,131.61,0.063]
[1744721282632,10.4,131.63,131.61,28.45971811]
[1744721282831,247.3,131.67,131.64,18.64964886]
[1744721283034,10.4,131.67,131.65,28.39671811]
[1744721283331,10.4,131.67,131.64,47.04636697]
[1744721283546,46.39151811,131.67,131.63,1.5863]
[1744721283745,17.9948,131.67,131.63,29.98301811]
[1744721284350,17.9948,131.67,131.64,28.39671811]
[1744721286657,10.4,131.67,131.63,37.58001811]
[1744721287059,10.4,131.67,131.64,47.04636697]
[1744721287361,10.4,131.67,131.66,47.04636697]
[1744721287730,10.4,131.67,131.66,18.64964886]
[1744721289131,10.4,131.67,131.66,47.04636697]
[1744721289364,10.4,131.67,131.66,54.64166697]
[1744721289862,10.4,131.67,131.66,47.04636697]
[1744721290230,10.4,131.67,131.66,18.64964886]
[1744721292430,10.4,131.67,131.66,26.24494886]
[1744721292650,10.4,131.67,131.66,54.64166697]
[1744721292854,10.4,131.67,131.66,47.04636697]
[1744721293059,10.4,131.67,131.66,18.64964886]
[1744721293439,28.16239943,131.67,131.64,18.64964886]
[1744721294546,10.4,131.67,131.64,18.64964886]
[1744721294746,10.4,131.67,131.64,36.41204829]
[1744721295148,10.4,131.67,131.66,17.76239943]
[1744721295632,10.4,131.67,131.66,18.64964886]
[1744721296139,10.4,131.67,131.64,25.35849943]
[1744721296346,10.4,131.67,131.64,18.64964886]
[1744721296746,10.4,131.67,131.64,36.41204829]
[1744721297176,17.9948,131.67,131.63,1.5863]
[1744721297351,35.75719943,131.67,131.63,1.5863]
[1744721297743,35.75719943,131.67,131.63,26.94569943]
[1744721297948,17.9948,131.67,131.63,26.94569943]
[1744721298239,10.4,131.67,131.64,36.41204829]
[1744721299370,10.4,131.67,131.65,25.35819943]
[1744721301178,10.4,131.67,131.66,18.64964886]
[1744721302269,28.16239943,131.67,131.63,1.5863]
[1744721302458,17.9948,131.67,131.63,26.94559943]
[1744721304169,10.4,131.67,131.64,36.41204829]
[1744721304377,10.4,131.67,131.65,17.76239943]
[1744721305574,10.4,131.67,131.65,25.35809943]
[1744721305890,10.4,131.67,131.66,36.41204829]
[1744721306177,35.75489943,131.71,131.66,36.41204829]
[1744721306879,10.4,131.71,131.68,18.64964886]
[1744721307384,10.4,131.71,131.68,36.41204829]
[1744721307580,10.4,131.71,131.7,25.35539943]
[1744721308154,10.4,131.71,131.69,18.64964886]
[1744721311662,10.4,131.71,131.69,44.00554829]
[1744721311872,10.4,131.71,131.7,17.76239943]
[1744721312566,10.4,131.71,131.7,44.00504829]
[1744721319083,10.4,131.71,131.7,18.64964886]
[1744721324296,10.4,131.71,131.7,44.00504829]
[1744721325798,0.063,131.73,131.71,18.64964886]
[1744721326090,0.063,131.73,131.72,17.76239943]
[1744721326295,0.063,131.73,131.72,25.35419943]
[1744721326897,0.063,131.73,131.72,44.00384829]
[1744721327079,0.063,131.73,131.72,71.61804829]
[1744721331189,10.463,131.77,131.72,71.61804829]
[1744721331397,10.463,131.77,131.76,36.41204829]
[1744721331578,0.063,131.77,131.76,36.41204829]
[1744721332975,0.063,131.77,131.76,44.00154829]
[1744721333172,0.0001,131.79,131.78,44.32554829]
[1744721333377,0.063,131.81,131.8,44.64964886]
[1744721333682,0.03,131.83,131.81,18.64964886]
[1744721333870,0.03,131.83,131.82,62.41204829]
[1744721334072,0.063,131.88,131.85,18.64964886]
[1744721334268,0.063,131.88,131.86,36.41204829]
[1744721334967,0.063,131.88,131.86,43.99584829]
[1744721336696,0.063,131.88,131.86,61.75824772]
[1744721337087,0.063,131.88,131.86,47.69316484]
[1744721338384,0.063,131.88,131.86,43.99584829]
[1744721338582,0.063,131.88,131.86,36.41204829]
[1744721339082,0.063,131.88,131.86,43.99584829]
[1744721343279,0.063,131.88,131.87,44.64964886]
[1744721343508,0.063,131.88,131.87,62.41204829]
[1744721345298,0.063,131.88,131.87,69.99524829]
[1744721350898,0.063,131.88,131.87,87.75764772]
[1744721351415,0.063,131.88,131.87,69.99524829]
[1744721355390,0.063,131.88,131.82,7.5861]
[1744721355714,0.063,131.88,131.84,43.76239943]
[1744721356106,0.063,131.88,131.85,18.64964886]
[1744721356615,17.76239943,131.86,131.82,36.41204829]
[1744721356909,28.14239943,131.87,131.82,43.76239943]
[1744721357116,28.14239943,131.87,131.83,18.64964886]
[1744721357511,17.76239943,131.86,131.82,18.64964886]
[1744721357896,28.14239943,131.87,131.82,36.41204829]
[1744721358429,7.5838,131.86,131.82,36.41204829]
[1744721358798,25.34619943,131.86,131.82,36.41204829]
[1744721360318,17.76239943,131.83,131.8,0.063]
[1744721360502,17.76239943,131.82,131.8,0.063]
[1744721360708,28.14239943,131.82,131.8,0.063]
[1744721361498,17.76239943,131.81,131.8,0.063]
[1744721361818,25.78359943,131.81,131.8,0.063]
[1744721362006,43.54599886,131.81,131.8,0.063]
[1744721362391,33.37019943,131.81,131.8,0.063]
[1744721365720,6.4718,131.81,131.8,0.063]
[1744721366411,14.0584,131.81,131.8,0.063]
[1744721366607,10.38,131.82,131.8,0.063]
[1744721367006,10.38,131.82,131.81,18.64964886]
[1744721369021,10.38,131.82,131.81,43.99864829]
[1744721369406,10.38,131.86,131.81,43.99864829]
[1744721369724,10.38,131.86,131.85,43.99634829]
[1744721370109,0.063,131.88,131.86,18.64964886]
[1744721370325,0.063,131.88,131.87,36.41204829]
[1744721371008,0.063,131.88,131.87,80.17444772]
[1744721371445,0.063,131.89,131.88,18.64964886]
[1744721371628,0.03,131.91,131.9,44.64964886]
[1744721371925,0.03,131.91,131.9,69.99354829]
[1744721373209,0.03,131.91,131.9,80.5289335]
[1744721375130,0.03,131.97,131.93,26.0]
[1744721375336,0.03,131.97,131.94,72.9474335]
[1744721375633,0.03,131.97,131.88,7.5826]
[1744721375634,35.90658464,131.95,131.88,7.5826]
[1744721375942,28.29778464,131.94,131.9,18.64964886]
[1744721376239,10.38,131.93,131.9,46.9474335]
[1744721376414,10.38,131.93,131.91,28.29778464]
[1744721377343,10.38,131.93,131.9,18.64964886]
[1744721378415,10.38,131.93,131.9,46.9474335]
[1744721379237,10.38,131.93,131.92,28.29778464]
[1744721380241,10.38,131.93,131.92,46.9474335]
[1744721380552,0.03,131.95,131.93,18.64964886]
[1744721380716,0.03,131.97,131.96,72.9474335]
[1744721382639,0.03,131.97,131.96,80.5254335]
[1744721383036,0.03,131.97,131.96,72.9474335]
[1744721384246,0.03,131.97,131.96,46.9474335]
[1744721385137,0.03,131.97,131.96,54.5254335]
[1744721388243,0.03,131.97,131.96,80.5254335]
[1744721392759,6.6575,132.09,132.0,44.64964886]
[1744721392954,6.6575,132.09,132.07,28.29778464]
[1744721393258,6.6575,132.09,132.03,44.64964886]
[1744721393259,10.38,132.1,132.08,46.9474335]
[1744721393838,10.38,132.1,132.09,46.9474335]
[1744721394258,10.38,132.1,132.03,34.2045]
[1744721394561,10.38,132.1,132.08,18.64964886]
[1744721395053,10.38,132.1,132.09,18.64964886]
[1744721396056,10.38,132.1,132.06,33.5723]
[1744721396255,10.38,132.1,132.09,18.64964886]
[1744721396643,10.38,132.1,132.09,46.9474335]
[1744721396845,253.3975,132.13,132.1,18.64964886]
[1744721397359,246.74,132.13,132.11,18.64964886]
[1744721397663,10.38,132.13,132.11,18.64964886]
[1744721399171,17.9484,132.13,132.09,28.29778464]
[1744721399379,17.9484,132.13,132.1,46.9474335]
[1744721399960,10.38,132.13,132.1,46.9474335]
[1744721400672,17.9483,132.13,132.1,46.9474335]
[1744721400971,17.9483,132.13,132.1,18.64964886]
[1744721401173,17.9483,132.13,132.08,28.29778464]
[1744721401174,28.29778464,132.12,132.08,28.29778464]
[1744721401362,17.9483,132.13,132.07,18.64964886]
[1744721401363,28.29778464,132.11,132.07,18.64964886]
[1744721401545,28.29778464,132.11,132.07,46.9474335]
[1744721401746,28.29778464,132.12,132.07,46.9474335]
[1744721402775,35.86668464,132.12,132.07,54.5186335]
[1744721403147,46.24628464,132.13,132.1,18.64964886]
[1744721403352,10.38,132.13,132.12,18.64964886]
[1744721403564,30.0,132.13,132.12,18.64964886]
[1744721403870,7.5674,132.15,132.12,18.64964886]
[1744721404778,7.5674,132.15,132.12,28.29778464]
[1744721404951,16.7138,132.17,132.14,18.64964886]
[1744721405151,52.57778464,132.17,132.14,18.64964886]
[1744721405859,52.57778464,132.17,132.12,28.29778464]
[1744721406164,28.29778464,132.16,132.12,18.64964886]
[1744721406362,52.57778464,132.17,132.13,18.64964886]
[1744721406567,24.28,132.17,132.13,46.9474335]
[1744721407077,52.57778464,132.17,132.12,28.29778464]
[1744721407368,52.57778464,132.17,132.13,18.64964886]
[1744721407976,28.29778464,132.16,132.12,18.64964886]
[1744721408146,28.29778464,132.16,132.12,28.29778464]
[1744721408353,17.9462,132.17,132.13,46.9474335]
[1744721409153,46.24398464,132.17,132.13,18.64964886]
[1744721409479,52.63978464,132.17,132.13,18.64964886]
[1744721409678,28.29778464,132.14,132.11,18.64964886]
[1744721409974,28.29778464,132.15,132.11,18.64964886]
[1744721411176,25.20923055,132.15,132.1,25.21113055]
[1744721411670,25.20923055,132.15,132.11,18.64964886]
[1744721411970,25.20923055,132.15,132.08,26.0]
[1744721411971,17.64153055,132.12,132.08,17.64153055]
[1744721412159,17.64153055,132.1,132.06,18.64964886]
[1744721412362,17.64153055,132.08,132.04,17.64153055]
[1744721412567,6.5025,132.11,132.04,25.21483055]
[1744721412568,17.64153055,132.09,132.04,25.21483055]
[1744721412772,17.64153055,132.1,132.06,17.64153055]
[1744721412981,10.38,132.11,132.09,18.64964886]
[1744721414075,107.0203,132.15,132.1,28.23776146]
[1744721414076,17.9473,132.15,132.1,28.23776146]
[1744721414388,10.38,132.15,132.14,28.23776146]
[1744721414685,16.4936,132.19,132.14,46.88741032]
[1744721414982,16.4936,132.19,132.16,18.64964886]
[1744721415168,10.38,132.19,132.16,18.64964886]
[1744721415374,17.9448,132.19,132.16,18.64964886]
[1744721415778,10.38,132.19,132.16,54.45391032]
[1744721415984,10.38,132.19,132.16,46.88741032]
[1744721416165,10.38,132.19,132.16,54.45391032]
[1744721416369,10.38,132.19,132.17,28.23776146]
[1744721416763,10.38,132.19,132.17,58.23776146]
[1744721417385,10.38,132.19,132.17,65.80366146]
[1744721419017,7.564,132.21,132.17,65.80366146]
[1744721419504,41.82466146,132.22,132.17,65.80366146]
[1744721419677,11.9534,132.23,132.19,28.23776146]
[1744721419678,10.41,132.23,132.19,28.23776146]
[1744721419868,28.23776146,132.21,132.2,18.64964886]
[1744721420309,28.23776146,132.21,132.19,30.0]
[1744721420507,28.23776146,132.2,132.19,30.0]
[1744721420801,28.23776146,132.2,132.12,37.40836146]
[1744721420971,28.23776146,132.15,132.14,30.0]
[1744721421397,35.80486146,132.15,132.14,30.0]
[1744721421696,35.80486146,132.15,132.09,35.80816146]
[1744721421879,28.23776146,132.13,132.1,30.0]
[1744721422086,28.23776146,132.13,132.11,18.64964886]
[1744721422383,7.5671,132.15,132.11,18.64964886]
[1744721422384,28.23776146,132.14,132.11,18.64964886]
[1744721422583,35.80486146,132.15,132.11,18.64964886]
[1744721422897,35.80486146,132.15,132.11,46.88741032]
[1744721423289,29.2756,132.17,132.11,46.88741032]
[1744721423290,35.80456146,132.16,132.11,46.88741032]
[1744721423797,35.80456146,132.16,132.11,54.45671032]
[1744721423990,35.80456146,132.16,132.11,46.88741032]
[1744721424195,7.5668,132.16,132.11,46.88741032]
[1744721424399,28.23776146,132.14,132.11,18.64964886]
[1744721424790,28.23776146,132.15,132.11,18.64964886]
[1744721424995,35.80526146,132.15,132.11,18.64964886]
[1744721426105,7.5668,132.16,132.14,18.64964886]
[1744721426787,17.9662,132.17,132.14,18.64964886]
[1744721428003,46.20396146,132.17,132.14,18.64964886]
[1744721428308,46.20396146,132.17,132.12,28.23776146]
[1744721428502,28.23776146,132.16,132.12,18.64964886]
[1744721428694,28.23776146,132.16,132.12,46.88741032]
[1744721428893,46.20396146,132.17,132.12,46.88741032]
[1744721432907,28.23776146,132.16,132.12,18.64964886]
[1744721433082,46.20396146,132.17,132.12,46.88741032]
[1744721434802,17.9662,132.17,132.13,28.23776146]
[1744721435003,46.20396146,132.17,132.12,54.45601032]
[1744721437304,46.20396146,132.17,132.12,46.88741032]
[1744721437611,28.23776146,132.15,132.11,18.64964886]
[1744721438202,28.23776146,132.14,132.11,18.64964886]
[1744721438710,28.23776146,132.14,132.1,18.64964886]
[1744721439411,7.5683,132.13,132.09,18.64964886]
[1744721439589,7.5683,132.13,132.09,46.88741032]
[1744721440910,28.23776146,132.1,132.05,9.1033]
[1744721441207,28.23776146,132.11,132.06,46.88741032]
[1744721441409,46.20676146,132.12,132.07,35.80896146]
[1744721441911,46.20676146,132.12,132.07,7.5712]
[1744721441912,28.23776146,132.11,132.07,7.5712]
[1744721442108,28.23776146,132.11,132.07,35.80896146]
[1744721442299,17.969,132.12,132.07,35.80896146]
[1744721442609,46.20676146,132.12,132.07,35.80896146]
[1744721443515,46.20676146,132.12,132.08,26.22044886]
[1744721443812,46.20676146,132.12,132.08,18.64964886]
[1744721445202,28.23776146,132.1,132.07,18.64964886]
[1744721445795,28.23776146,132.11,132.07,18.64964886]
[1744721446533,46.20676146,132.12,132.08,18.64964886]
[1744721447000,35.80776146,132.1,132.05,63.34116146]
[1744721447199,35.80776146,132.1,132.06,18.64964886]
[1744721447401,120.23776146,132.12,132.07,28.23776146]
[1744721447601,120.23776146,132.12,132.09,18.64964886]
[1744721447812,28.23776146,132.11,132.08,18.64964886]
[1744721448417,46.20666146,132.12,132.08,18.64964886]
[1744721449217,35.61892833,132.12,132.08,18.64964886]
[1744721450407,35.61892833,132.12,132.08,26.22074886]
[1744721450801,17.65002833,132.11,132.08,18.64964886]
[1744721451007,17.65002833,132.11,132.07,18.64964886]
[1744721451999,25.21952833,132.11,132.07,43.87137719]
[1744721452203,25.21952833,132.11,132.07,25.22172833]
[1744721452421,10.4,132.12,132.1,18.64964886]
[1744721452731,10.4,132.12,132.11,36.29967719]
[1744721453018,10.4,132.12,132.11,18.64964886]
[1744721453404,106.81742833,132.15,132.11,36.29967719]
[1744721453720,10.4,132.16,132.13,17.65002833]
[1744721453907,10.4,132.2,132.15,17.65002833]
[1744721454101,10.4,132.2,132.18,36.29967719]
[1744721454308,11.76479038,132.21,132.19,36.29967719]
[1744721455205,11.76479038,132.21,132.2,36.29967719]
[1744721456323,11.76479038,132.21,132.2,43.86387719]
[1744721456532,11.76479038,132.21,132.2,36.29967719]
[1744721457306,11.76479038,132.21,132.2,54.39576189]
[1744721457502,0.03,132.23,132.21,18.64964886]
[1744721457702,0.03,132.23,132.22,28.18191303]
[1744721459317,0.03,132.23,132.19,9.1379]
[1744721459507,0.03,132.23,132.2,46.83156189]
[1744721459709,0.03,132.23,132.22,18.64964886]
[1744721460317,0.03,132.23,132.2,18.64964886]
[1744721460318,28.21191303,132.23,132.2,18.64964886]
[1744721460511,35.77471303,132.23,132.2,18.64964886]
[1744721460724,7.5928,132.23,132.2,18.64964886]
[1744721461550,0.03,132.23,132.22,28.18191303]
[1744721461739,0.03,132.23,132.22,46.83156189]
[1744721463233,0.03,132.23,132.22,54.39466189]
[1744721464333,0.03,132.23,132.22,46.83156189]
[1744721464728,0.03,132.23,132.22,18.64964886]
[1744721465231,0.03,132.23,132.22,46.83156189]
[1744721465621,0.03,132.23,132.22,54.39466189]
[1744721468712,0.03,132.23,132.22,46.83156189]
[1744721469629,0.03,132.23,132.22,54.39466189]
[1744721472837,0.03,132.23,132.22,80.39466189]
[1744721473135,0.03,132.29,132.27,18.64964886]
[1744721473342,0.03,132.29,132.28,46.83156189]
[1744721473546,0.03,132.29,132.28,18.64964886]
[1744721473722,35.77101303,132.29,132.23,18.64964886]
[1744721474032,28.18191303,132.26,132.23,18.64964886]
[1744721474633,28.18191303,132.27,132.23,18.64964886]
[1744721474835,35.74231303,132.27,132.23,18.64964886]
[1744721475345,28.18191303,132.26,132.23,18.64964886]
[1744721475839,7.5604,132.27,132.23,54.39396189]
[1744721476035,46.10161303,132.28,132.23,54.39396189]
[1744721476342,17.9197,132.28,132.25,18.64964886]
[1744721477340,10.36,132.28,132.25,18.64964886]
[1744721477740,0.03,132.29,132.27,28.18191303]
[1744721477944,0.03,132.29,132.28,18.64964886]
[1744721478140,0.03,132.29,132.28,46.83156189]
[1744721479132,0.03,132.29,132.28,54.39126189]
[1744721479543,0.03,132.29,132.28,82.57317492]
[1744721480247,0.0001,132.29,132.28,82.57317492]
[1744721480434,0.0001,132.29,132.28,54.39126189]
[1744721480630,0.0001,132.29,132.28,18.64964886]
[1744721480949,0.0001,132.29,132.26,18.64964886]
[1744721481242,0.0001,132.29,132.27,37.5602]
[1744721481447,0.0001,132.29,132.27,30.0]
[1744721481941,0.0001,132.29,132.27,28.18191303]
[1744721482128,0.0001,132.29,132.28,28.18191303]
[1744721482529,0.0001,132.29,132.28,46.83156189]
[1744721482950,0.0001,132.29,132.28,102.60907492]
[1744721483149,0.0001,132.29,132.28,110.16877492]
[1744721483444,0.0001,132.29,132.28,81.98686189]
[1744721483834,0.0001,132.29,132.28,88.52266189]
[1744721485828,0.0001,132.29,132.28,52.20934886]
[1744721486144,0.0001,132.29,132.28,80.39126189]
[1744721487249,0.0001,132.29,132.28,54.39126189]
[1744721488154,0.0001,132.29,132.28,80.39126189]
[1744721489057,0.03,132.31,132.3,44.64964886]
[1744721489251,0.03,132.31,132.3,102.56207492]
[1744721489659,0.03,132.31,132.3,72.83156189]
[1744721489868,0.03,132.31,132.3,18.64964886]
[1744721491060,28.21191303,132.31,132.27,28.18191303]
[1744721491238,28.18191303,132.29,132.26,18.64964886]
[1744721491572,28.18191303,132.3,132.26,18.64964886]
[1744721491853,28.18191303,132.28,132.24,28.18191303]
[1744721492153,126.66551303,132.29,132.26,18.64964886]
[1744721492455,126.66551303,132.29,132.22,26.0]
[1744721492456,28.18191303,132.27,132.23,18.64964886]
[1744721493157,35.74221303,132.27,132.23,46.83156189]
[1744721494558,35.74221303,132.27,132.23,54.39406189]
[1744721494854,7.5603,132.27,132.23,46.83156189]
[1744721495054,35.74221303,132.27,132.23,54.39406189]
[1744721495262,35.74181303,132.28,132.25,18.64964886]
[1744721495561,7.5599,132.28,132.25,18.64964886]
[1744721496234,35.74181303,132.28,132.25,18.64964886]
[1744721496756,134.22481303,132.29,132.25,18.64964886]
[1744721496961,28.18191303,132.28,132.25,18.64964886]
[1744721497147,28.18191303,132.28,132.23,46.83156189]
[1744721497462,28.18191303,132.28,132.23,18.64964886]
[1744721497637,28.18191303,132.28,132.23,54.39396189]
[1744721498355,134.22481303,132.29,132.25,18.64964886]
[1744721498538,98.4836,132.29,132.25,54.39286189]
[1744721498744,81.6,132.29,132.27,18.64964886]
[1744721498937,17.9187,132.3,132.27,18.64964886]
[1744721499238,10.36,132.3,132.27,18.64964886]
[1744721499548,10.36,132.3,132.28,18.64964886]
[1744721500471,10.36,132.3,132.28,46.83156189]
[1744721501251,10.36,132.3,132.28,54.39116189]
[1744721505342,0.03,132.31,132.28,26.20924886]
[1744721505538,0.03,132.31,132.28,54.39116189]
[1744721505877,89.1881,132.31,132.23,34.48301303]
[1744721506045,28.18191303,132.25,132.21,7.5637]
[1744721506363,28.18191303,132.23,132.19,0.063]
[1744721506666,28.18191303,132.24,132.19,46.89456189]
[1744721506867,28.18191303,132.24,132.19,28.24491303]
[1744721507050,35.74391303,132.24,132.2,30.0]
[1744721507251,35.74351303,132.25,132.21,18.64964886]
[1744721507649,28.18191303,132.24,132.21,18.64964886]
[1744721507858,28.18191303,132.24,132.2,58.18191303]
[1744721507859,28.18191303,132.24,132.2,18.64964886]
[1744721508058,28.18191303,132.23,132.2,18.64964886]
[1744721509667,28.18191303,132.24,132.2,26.21384886]
[1744721510170,28.18191303,132.25,132.2,54.39576189]
[1744721510468,35.74611303,132.21,132.19,0.063]
[1744721510645,38.54191303,132.21,132.19,0.063]
[1744721510840,102.0293,132.24,132.21,18.64964886]
[1744721510841,81.6,132.24,132.21,18.64964886]
[1744721511045,10.36,132.23,132.21,18.64964886]
[1744721511366,10.36,132.23,132.19,18.71264886]
[1744721511566,10.36,132.23,132.21,18.64964886]
[1744721512375,38.54191303,132.23,132.19,18.71264886]
[1744721512552,46.10471303,132.23,132.2,18.64964886]
[1744721515252,10.36,132.23,132.2,18.64964886]
[1744721515568,17.9226,132.23,132.2,18.64964886]
[1744721516247,10.36,132.23,132.2,26.21384886]
[1744721516454,17.9215,132.25,132.22,18.64964886]
[1744721516654,10.36,132.25,132.22,46.83156189]
[1744721516873,10.36,132.25,132.22,54.39466189]
[1744721517772,10.36,132.25,132.22,46.83156189]
[1744721520968,10.36,132.25,132.22,54.39466189]
[1744721521283,10.36,132.25,132.22,46.83156189]
[1744721521990,17.9214,132.25,132.22,46.83156189]
[1744721522578,46.10331303,132.25,132.2,28.18191303]
[1744721522794,28.18191303,132.24,132.2,18.64964886]
[1744721523082,7.5625,132.23,132.2,18.64964886]
[1744721523456,7.5625,132.23,132.2,36.26687962]
[1744721523880,91.96,132.25,132.21,17.61723076]
[1744721524190,91.96,132.25,132.22,17.61723076]
[1744721524489,10.36,132.25,132.22,17.61723076]
[1744721524786,10.36,132.25,132.21,17.61723076]
[1744721525390,17.9214,132.25,132.21,17.61723076]
[1744721525567,35.53863076,132.25,132.21,17.61723076]
[1744721526081,17.9214,132.25,132.21,17.61723076]
[1744721526267,10.36,132.25,132.22,17.61723076]
[1744721526470,17.9214,132.25,132.22,18.64964886]
[1744721526858,35.53863076,132.25,132.22,18.64964886]
[1744721529185,35.53863076,132.25,132.2,25.18143076]
[1744721529689,17.61723076,132.21,132.19,0.063]
[1744721529865,17.61723076,132.22,132.19,0.063]
[1744721530192,88.1055,132.24,132.19,0.063]
[1744721530193,17.61723076,132.21,132.19,0.063]
[1744721530769,17.61723076,132.2,132.19,0.063]
[1744721531175,25.18143076,132.2,132.19,0.063]
[1744721531599,35.54143076,132.2,132.19,0.063]
[1744721533593,10.36,132.24,132.2,18.64964886]
[1744721533882,17.922,132.24,132.22,18.64964886]
[1744721534290,10.36,132.24,132.22,18.64964886]
[1744721534662,17.922,132.24,132.22,18.64964886]
[1744721534874,10.36,132.24,132.22,18.64964886]
[1744721535395,17.9221,132.24,132.22,18.64964886]
[1744721536287,10.36,132.24,132.22,18.64964886]
[1744721536691,17.922,132.24,132.22,18.64964886]
[1744721538483,81.6,132.3,132.23,62.26687962]
[1744721538683,0.03,132.31,132.29,17.61723076]
[1744721539184,0.03,132.31,132.28,17.61723076]
[1744721539686,0.03,132.31,132.24,17.61723076]
[1744721539687,17.61723076,132.29,132.24,17.61723076]
[1744721539869,17.61723076,132.28,132.23,17.61723076]
[1744721540072,27.97723076,132.28,132.24,18.64964886]
[1744721541289,10.36,132.28,132.24,43.82857962]
[1744721541596,10.36,132.28,132.27,18.64964886]
[1744721541889,10.36,132.28,132.26,18.64964886]
[1744721542471,10.36,132.28,132.26,17.61723076]
[1744721542670,10.36,132.28,132.25,18.64964886]
[1744721542671,10.36,132.28,132.27,17.61723076]
[1744721542891,81.63,132.31,132.28,18.64964886]
[1744721543991,99.24723076,132.31,132.28,18.64964886]
[1744721544692,106.80523076,132.31,132.28,18.64964886]
[1744721546602,99.24723076,132.31,132.28,18.64964886]
[1744721546997,81.63,132.31,132.28,18.64964886]
[1744721547493,81.63,132.31,132.28,26.20924886]
[1744721547798,81.63,132.31,132.28,18.64964886]
[1744721548095,106.80533076,132.31,132.28,18.64964886]
[1744721548397,106.80533076,132.31,132.26,7.5606]
[1744721548576,106.80533076,132.31,132.26,25.17783076]
[1744721549102,106.80533076,132.31,132.27,18.64964886]
[1744721550700,17.61723076,132.29,132.25,18.64964886]
[1744721550898,81.6,132.28,132.25,18.64964886]
[1744721551111,81.6,132.28,132.27,18.64964886]
[1744721551784,81.6,132.28,132.27,17.61723076]
[1744721552305,81.6,132.28,132.27,36.26687962]
[1744721554999,81.63,132.31,132.28,18.64964886]
[1744721555192,81.63,132.31,132.29,17.61723076]
[1744721555385,81.63,132.31,132.28,17.61723076]